fUSD/lending_fUSD_20251110
["ID","MTS","AMOUNT","RATE_DAILY","PERIOD"]
[393555706,1762797047628,-288.737275,0.00034,31]
[393555707,1762797047637,-223.187805,0.00034,31]
[393555708,1762797047647,-156.335043,0.00034,31]
[393555709,1762797047656,-288.737275,0.00034,31]
[393555710,1762797047667,-223.187805,0.00034,31]
[393555711,1762797047677,-288.737275,0.00034,31]
[393555712,1762797047686,-223.187805,0.00034,31]
[393555713,1762797047696,-288.737275,0.00034,31]
[393555714,1762797047705,-193.691085,0.00034,31]
[393555715,1762797047716,-193.691085,0.00034,31]
[393555716,1762797047725,-151.0,0.00034,31]
[393555717,1762797047734,-193.691085,0.00034,31]
[393555718,1762797047744,-151.0,0.00034,31]
[393555719,1762797047753,-193.691085,0.00034,31]
[393555720,1762797047763,-531.780223,0.00034,31]
[393555721,1762797047773,-151.0,0.00034,31]
[393555722,1762797047782,-531.780223,0.00034,31]
[393555723,1762797047791,-151.0,0.00034,31]
[393555724,1762797047800,-156.857615,0.00034,31]
[393555725,1762797047810,-531.780223,0.00034,31]
[393555726,1762797047819,-234.323809,0.00034,31]
[393555727,1762797047829,-151.0,0.00034,31]
[393555728,1762797047839,-151.0,0.00034,31]
[393555729,1762797047848,-513.65755,0.00034,31]
[393555730,1762797047857,-531.780223,0.00034,31]
[393555731,1762797047867,-212.618371,0.00034,31]
[393555732,1762797047876,-416.545079,0.00034,31]
[393555733,1762797047884,-234.323809,0.00034,31]
[393555734,1762797047893,-263.168349,0.00034,31]
[393555735,1762797047903,-151.0,0.00034,31]
[393555736,1762797047912,-513.65755,0.00034,31]
[393555737,1762797047921,-212.618371,0.00034,31]
[393555738,1762797047930,-416.545079,0.00034,31]
[393555739,1762797047940,-234.323809,0.00034,31]
[393555740,1762797047949,-269.006095,0.00034,31]
[393555741,1762797047959,-263.168349,0.00034,31]
[393555742,1762797047968,-513.65755,0.00034,31]
[393555743,1762797047978,-212.618371,0.00034,31]
[393555744,1762797047987,-416.545079,0.00034,31]
[393555745,1762797047996,-234.323809,0.00034,31]
[393555746,1762797048006,-269.006095,0.00034,31]
[393555747,1762797048015,-263.168349,0.00034,31]
[393555748,1762797048025,-212.618371,0.00034,31]
[393555749,1762797048034,-151.0,0.00034,31]
[393555750,1762797048044,-513.65755,0.00034,31]
[393555751,1762797048053,-416.545079,0.00034,31]
[393555752,1762797048063,-214.118856,0.00034,31]
[393555753,1762797048073,-151.0,0.00034,31]
[393555754,1762797048082,-151.0,0.00034,31]
[393555755,1762797048091,-269.006095,0.00034,31]
[393555756,1762797048101,-263.168349,0.00034,31]
[393555757,1762797048110,-151.0,0.00034,31]
[393555758,1762797048119,-185.02724231,0.00034,31]
[393555759,1762797048129,-269.006095,0.00034,31]
[393555760,1762797048138,-151.0,0.00034,31]
[393555761,1762797048147,-151.0,0.00034,31]
[393555762,1762797048156,-222.097129,0.00034,31]
[393555763,1762797048165,-151.0,0.00034,31]
[393555764,1762797048176,-222.097129,0.00034,31]
[393555765,1762797048186,-151.0,0.00034,31]
[393555766,1762797048196,-151.0,0.00034,31]
[393555767,1762797048205,-222.097129,0.00034,31]
[393555768,1762797048215,-151.0,0.00034,31]
[393555769,1762797048224,-151.0,0.00034,28]
[393555770,1762797048234,-222.097129,0.00034,31]
[393555771,1762797048243,-151.0,0.00034,31]
[393555772,1762797048252,-151.0,0.00034,28]
[393555773,1762797048261,-151.0,0.00034,31]
[393555774,1762797048271,-151.0,0.00034,31]
[393555775,1762797048280,-151.0,0.00034,31]
[393555776,1762797048290,-207.172708,0.00034,31]
[393555777,1762797048299,-151.0,0.00034,31]
[393555778,1762797048308,-151.0,0.00034,31]
[393555779,1762797048318,-285.62503,0.00034,31]
[393555780,1762797048328,-151.0,0.00034,31]
[393555781,1762797048337,-222.903386,0.00034,31]
[393555782,1762797048347,-285.62503,0.00034,31]
[393555783,1762797048356,-222.903386,0.00034,31]
[393555784,1762797048366,-222.903386,0.00034,31]
[393555785,1762797048376,-151.0,0.00034,31]
[393555786,1762797048386,-285.62503,0.00034,31]
[393555787,1762797048395,-222.903386,0.00034,31]
[393555788,1762797048405,-151.0,0.00034,31]
[393555789,1762797048414,-151.0,0.00034,31]
[393555790,1762797048423,-285.62503,0.00034,31]
[393555791,1762797048433,-151.0,0.00034,31]
[393555792,1762797048442,-151.0,0.00034,31]
[393555793,1762797048457,-158.427453,0.00034,31]
[393555794,1762797048468,-151.0,0.00034,31]
[393555795,1762797048477,-151.0,0.00034,31]
[393555796,1762797048488,-151.0,0.00034,31]
[393555797,1762797048498,-451.876754,0.00034,31]
[393555798,1762797048508,-436.994784,0.00034,31]
[393555799,1762797048517,-291.654781,0.00034,31]
[393555800,1762797048527,-362.491888,0.00034,31]
[393555801,1762797048537,-436.994784,0.00034,31]
[393555802,1762797048546,-451.876754,0.00034,31]
[393555803,1762797048556,-362.491888,0.00034,31]
[393555804,1762797048565,-151.0,0.00034,31]
[393555805,1762797048574,-151.0,0.00034,31]
[393555806,1762797048584,-436.994784,0.00034,31]
[393555807,1762797048593,-451.876754,0.00034,31]
[393555808,1762797048602,-362.491888,0.00034,31]
[393555809,1762797048612,-234.255285,0.00034,31]
[393555810,1762797048620,-251.544077,0.00034,31]
[393555811,1762797048630,-436.994784,0.00034,31]
[393555812,1762797048639,-151.0,0.00034,31]
[393555813,1762797048649,-362.491888,0.00034,31]
[393555814,1762797048659,-152.890435,0.00034,31]
[393555815,1762797048672,-251.544077,0.00034,31]
[393555816,1762797048689,-451.876754,0.00034,31]
[393555817,1762797048701,-151.0,0.00034,31]
[393555818,1762797048710,-251.544077,0.00034,31]
[393555819,1762797048719,-591.384018,0.00034,30]
[393555820,1762797048727,-236.95577,0.00034,31]
[393555821,1762797048736,-251.544077,0.00034,31]
[393555822,1762797048746,-591.384018,0.00034,30]
[393555823,1762797048755,-236.95577,0.00034,31]
[393555824,1762797048764,-1018.263206,0.00034,31]
[393555825,1762797048773,-1018.263206,0.00034,31]
[393555826,1762797048783,-236.95577,0.00034,31]
[393555827,1762797048794,-591.384018,0.00034,30]
[393555828,1762797048803,-151.0,0.00034,15]
[393555829,1762797048813,-1018.263206,0.00034,31]
[393555830,1762797048822,-151.0,0.00034,31]
[393555831,1762797048831,-236.95577,0.00034,31]
[393555832,1762797048840,-155.821304,0.00034,31]
[393555833,1762797048850,-591.384018,0.00034,30]
[393555834,1762797048859,-151.0,0.00034,15]
[393555835,1762797048868,-1018.263206,0.00034,31]
[393555836,1762797048878,-151.0,0.00034,31]
[393555837,1762797049012,-151.0,0.00034,15]
[393555838,1762797049022,-151.0,0.00034,31]
[393555839,1762797049031,-152.099214,0.00034,15]
[393555840,1762797049040,-151.0,0.00034,31]
[393555841,1762797049050,-181.42649,0.00034,31]
[393555842,1762797049059,-181.42649,0.00034,31]
[393555843,1762797049069,-151.0,0.00034,31]
[393555844,1762797049078,-181.42649,0.00034,31]
[393555845,1762797049087,-151.0,0.00034,31]
[393555846,1762797049096,-181.42649,0.00034,31]
[393555847,1762797049105,-151.0,0.00034,31]
[393555848,1762797049115,-151.0,0.00034,31]
[393555849,1762797049125,-151.827902,0.00034,31]
[393555850,1762797049134,-151.0,0.00034,31]
[393555851,1762797049144,-151.0,0.00034,31]
[393555852,1762797049154,-151.0,0.00034,31]
[393555853,1762797049163,-432.550746,0.00034,31]
[393555854,1762797049173,-432.550746,0.00034,31]
[393555855,1762797049183,-151.0,0.00034,31]
[393555856,1762797049192,-432.550746,0.00034,31]
[393555857,1762797049201,-151.0,0.00034,31]
[393555858,1762797049211,-432.550746,0.00034,31]
[393555859,1762797049221,-151.0,0.00034,31]
[393555860,1762797049230,-151.0,0.00034,31]
[393555861,1762797049240,-151.0,0.00034,30]
[393555862,1762797049250,-223.764812,0.00034,31]
[393555863,1762797049259,-223.764812,0.00034,31]
[393555864,1762797049269,-223.764812,0.00034,31]
[393555865,1762797049278,-223.764812,0.00034,31]
[393555866,1762797049288,-500.0,0.00034027,30]
[393555867,1762797049298,-500.0,0.00034027,120]
[393555868,1762797049307,-500.0,0.0003409,2]
[393555869,1762797049318,-500.0,0.0003409,120]
[393555870,1762797049327,-1500.0,0.000341,2]
[393555871,1762797049336,-1500.0,0.000341,2]
[393555872,1762797049346,-170.63341893,0.000341,5]
[393555873,1762797049356,-500.0,0.00034137,7]
[393555874,1762797049366,-678.7,0.00034152,2]
[393555875,1762797049376,-7129.18967903,0.00034154,2]
[393555876,1762797049386,-222.44773578,0.00034168,120]
[393555877,1762797049396,-500.0,0.00034247,30]
[393555878,1762797049406,-600.0,0.00034247,120]
[393555879,1762797049416,-2274.0,0.00034247,15]
[393555880,1762797049426,-217.0,0.00034253,30]
[393555881,1762797049435,-500.0,0.00034281,7]
[393555882,1762797049445,-500.0,0.00034327,7]
[393555883,1762797049461,-498.91187858,0.00034394,2]
[393555884,1762797049470,-248.71531821,0.000344,2]
[393555885,1762797049480,-394.0,0.000344,2]
[393555886,1762797049489,-500.0,0.00034463,7]
[393555887,1762797049500,-500.0,0.00034463,7]
[393555888,1762797049510,-500.0,0.00034463,7]
[393555889,1762797049519,-500.0,0.00034463,7]
[393555890,1762797049531,-966.32813137,0.00034463,7]
[393555891,1762797049541,-500.0,0.00034463,7]
[393555892,1762797049550,-221.56866496,0.00034463,7]
[393555893,1762797049559,-500.0,0.00034463,7]
[393555894,1762797049569,-500.0,0.00034463,7]
[393555895,1762797049578,-998.29757791,0.00034463,7]
[393555896,1762797049587,-316.28471736,0.00034463,7]
[393555897,1762797049598,-500.0,0.00034463,7]
[393555898,1762797049607,-500.0,0.00034463,7]
[393555899,1762797049616,-800.0,0.00034463,7]
[393555900,1762797049625,-500.0,0.00034463,7]
[393555901,1762797049636,-500.0,0.00034463,7]
[393555902,1762797049645,-500.0,0.00034463,7]
[393555903,1762797049654,-500.0,0.00034463,7]
[393555904,1762797049663,-500.0,0.00034463,7]
[393555905,1762797049672,-278.99273219,0.00034463,7]
[393555906,1762797049681,-500.0,0.00034463,7]
[393555907,1762797049691,-474.5962031,0.00034463,7]
[393555908,1762797049699,-500.0,0.00034463,7]
[393555909,1762797049708,-500.0,0.00034463,7]
[393555910,1762797049722,-500.0,0.00034463,7]
[393555911,1762797049731,-500.0,0.00034463,7]
[393555912,1762797049738,-504.73463064,0.00034463,7]
[393555913,1762797049748,-165.51749561,0.00034463,7]
[393555914,1762797049757,-500.0,0.00034463,7]
[393555915,1762797049766,-500.0,0.00034463,7]
[393555916,1762797049775,-500.0,0.00034463,7]
[393555917,1762797049785,-285.30517008,0.00034463,7]
[393555918,1762797049793,-500.0,0.00034463,7]
[393555919,1762797049801,-500.0,0.00034463,7]
[393555920,1762797049810,-500.0,0.00034463,7]
[393555921,1762797049818,-500.0,0.00034463,7]
[393555922,1762797049826,-500.0,0.00034463,7]
[393555923,1762797049835,-500.0,0.00034463,7]
[393555924,1762797049846,-500.0,0.00034463,7]
[393555925,1762797049855,-778.3686824,0.00034463,7]
[393555926,1762797049863,-152.13713097,0.00034463,7]
[393555927,1762797049873,-500.0,0.00034463,7]
[393555928,1762797049883,-500.0,0.00034463,7]
[393555929,1762797049889,-982.75455222,0.00034463,7]
[393555930,1762797049898,-500.0,0.00034463,7]
[393555931,1762797049907,-500.0,0.00034463,7]
[393555932,1762797049917,-500.0,0.00034463,7]
[393555933,1762797049927,-500.0,0.00034463,7]
[393555934,1762797049936,-500.0,0.00034463,7]
[393555935,1762797049946,-500.0,0.00034463,7]
[393555936,1762797049955,-500.0,0.00034463,7]
[393555937,1762797049967,-500.0,0.00034463,7]
[393555938,1762797049978,-500.0,0.00034463,7]
[393555939,1762797049988,-500.0,0.00034463,7]
[393555940,1762797049999,-500.0,0.00034463,7]
[393555941,1762797050008,-637.77786076,0.00034463,7]
[393555942,1762797050018,-500.0,0.00034519,120]
[393555943,1762797050027,-659.91542078,0.0003452,120]
[393555944,1762797050036,-500.0,0.00034521,30]
[393555945,1762797050046,-2000.0,0.00034534,120]
[393555946,1762797050056,-340.51927141,0.00034577,15]
[393555947,1762797050066,-151.0,0.00034583,31]
[393555948,1762797050076,-151.0,0.00034583,31]
[393555949,1762797050086,-151.0,0.00034583,31]
[393555950,1762797050095,-158.277045,0.00034583,31]
[393555951,1762797050105,-151.0,0.00034583,31]
[393555952,1762797050115,-157.098488,0.00034583,31]
[393555953,1762797050124,-151.0,0.00034583,31]
[393555954,1762797050133,-151.0,0.00034583,31]
[393555955,1762797050143,-151.0,0.00034583,31]
[393555956,1762797050153,-152.693323,0.00034583,31]
[393555957,1762797050162,-151.0,0.00034583,31]
[393555958,1762797050172,-151.0,0.00034583,31]
[393555959,1762797050182,-151.0,0.00034583,31]
[393555960,1762797050192,-151.0,0.00034583,31]
[393555961,1762797050201,-151.0,0.00034583,31]
[393555962,1762797050211,-151.0,0.00034583,31]
[393555963,1762797050221,-151.0,0.00034583,31]
[393555964,1762797050231,-155.382324,0.00034583,31]
[393555965,1762797050240,-151.0,0.00034583,31]
[393555966,1762797050250,-261.6248,0.00034583,31]
[393555967,1762797050260,-261.6248,0.00034583,31]
[393555968,1762797050270,-261.6248,0.00034583,31]
[393555969,1762797050279,-261.6248,0.00034583,31]
[393555970,1762797050288,-151.0,0.00034583,31]
[393555971,1762797050298,-151.0,0.00034583,31]
[393555972,1762797050307,-151.0,0.00034583,31]
[393555973,1762797050318,-151.0,0.00034583,31]
[393555974,1762797050327,-151.0,0.00034583,31]
[393555975,1762797050336,-151.0,0.00034583,31]
[393555976,1762797050346,-151.0,0.00034583,31]
[393555977,1762797050356,-151.0,0.00034583,31]
[393555978,1762797050366,-151.0,0.00034583,31]
[393555979,1762797050376,-151.0,0.00034583,31]
[393555980,1762797050385,-151.0,0.00034583,31]
[393555981,1762797050395,-151.0,0.00034583,31]
[393555982,1762797050404,-151.0,0.00034583,31]
[393555983,1762797050413,-151.0,0.00034583,31]
[393555984,1762797050423,-151.0,0.00034583,31]
[393555985,1762797050433,-151.0,0.00034583,31]
[393555986,1762797050442,-151.0,0.00034583,31]
[393555987,1762797050454,-151.0,0.00034583,31]
[393555988,1762797050465,-151.0,0.00034583,31]
[393555989,1762797050474,-156.464707,0.00034583,31]
[393555990,1762797050484,-151.0,0.00034583,31]
[393555991,1762797050495,-364.780246,0.00034583,31]
[393555992,1762797050504,-364.780246,0.00034583,31]
[393555993,1762797050514,-151.0,0.00034583,31]
[393555994,1762797050523,-364.780246,0.00034583,31]
[393555995,1762797050533,-242.656944,0.00034583,31]
[393555996,1762797050542,-151.0,0.00034583,31]
[393555997,1762797050552,-364.780246,0.00034583,31]
[393555998,1762797050561,-242.656944,0.00034583,31]
[393555999,1762797050570,-151.0,0.00034583,31]
[393556000,1762797050580,-242.656944,0.00034583,31]
[393556001,1762797050590,-242.656944,0.00034583,31]
[393556002,1762797050599,-151.0,0.00034583,31]
[393556003,1762797050609,-151.0,0.00034583,31]
[393556004,1762797050618,-151.0,0.00034583,31]
[393556005,1762797050627,-151.0,0.00034583,31]
[393556006,1762797050636,-151.0,0.00034583,31]
[393556007,1762797050646,-151.711308,0.00034583,31]
[393556008,1762797050655,-151.711308,0.00034583,31]
[393556009,1762797050664,-194.546954,0.00034583,31]
[393556010,1762797050674,-161.636163,0.00034583,31]
[393556011,1762797050684,-194.310379,0.00034583,31]
[393556012,1762797050694,-151.711308,0.00034583,31]
[393556013,1762797050704,-151.0,0.00034583,31]
[393556014,1762797050715,-164.433889,0.00034583,31]
[393556015,1762797050724,-194.546954,0.00034583,31]
[393556016,1762797050734,-194.310379,0.00034583,31]
[393556017,1762797050744,-164.433889,0.00034583,31]
[393556018,1762797050753,-151.711308,0.00034583,31]
[393556019,1762797050762,-194.546954,0.00034583,31]
[393556020,1762797050771,-194.310379,0.00034583,31]
[393556021,1762797050781,-151.0,0.00034583,31]
[393556022,1762797050790,-194.546954,0.00034583,31]
[393556023,1762797050800,-164.433889,0.00034583,31]
[393556024,1762797050809,-194.310379,0.00034583,31]
[393556025,1762797050818,-151.0,0.00034583,31]
[393556026,1762797050828,-151.0,0.00034583,31]
[393556027,1762797050837,-151.0,0.00034583,31]
[393556028,1762797050846,-151.0,0.00034583,31]
[393556029,1762797050856,-170.939919,0.00034583,31]
[393556030,1762797050868,-203.527445,0.00034583,31]
[393556031,1762797051003,-164.433889,0.00034583,31]
[393556032,1762797051013,-151.0,0.00034583,31]
[393556033,1762797051022,-151.0,0.00034583,31]
[393556034,1762797051031,-151.0,0.00034583,31]
[393556035,1762797051041,-194.360856,0.00034583,31]
[393556036,1762797051051,-194.360856,0.00034583,31]
[393556037,1762797051061,-194.360856,0.00034583,31]
[393556038,1762797051070,-194.360856,0.00034583,31]
[393556039,1762797051080,-151.0,0.00034583,31]
[393556040,1762797051090,-151.0,0.00034583,31]
[393556041,1762797051100,-151.0,0.00034583,31]
[393556042,1762797051110,-254.02,0.00034795,30]
[393556043,1762797051121,-509.06504926,0.00034865,120]
[393556044,1762797051131,-349.25335337,0.00034865,120]
[393556045,1762797051141,-1250.95,0.00034867,30]
[393556046,1762797051151,-211.0,0.0003488,30]
[393556047,1762797051160,-218.09838,0.00034899,2]
[393556048,1762797051170,-500.0,0.00034901,120]
[393556049,1762797051180,-1000.0,0.00034932,7]
[393556050,1762797051190,-151.0,0.00035,5]
[393556051,1762797051200,-3312.72902594,0.00035,2]
[393556052,1762797051221,-150.06,0.00035,2]
[393556053,1762797051232,-942.17,0.00035,14]
[393556054,1762797051243,-4760.5026749,0.00035,30]
[393556055,1762797051256,-514.49732509,0.00035,30]
[393556056,1762797051266,-321.0,0.00035,120]
[393556057,1762797051276,-699.1,0.00035051,2]
[393556058,1762797051286,-200.62837306,0.00035082,120]
[393556059,1762797051296,-1500.0,0.000351,2]
[393556060,1762797051306,-1500.0,0.000351,2]
[393556061,1762797051316,-500.0,0.00035155,30]
[393556062,1762797051326,-515.14114772,0.00035155,120]
[393556063,1762797051336,-500.0,0.00035155,120]
[393556064,1762797051347,-746.64673016,0.00035285,2]
[393556065,1762797051358,-600.0,0.00035297,13]
[393556066,1762797051369,-600.0,0.00035297,13]
[393556067,1762797051380,-600.0,0.00035297,13]
[393556068,1762797051391,-600.0,0.00035297,13]
[393556069,1762797051401,-600.0,0.00035297,13]
[393556070,1762797051412,-600.0,0.00035297,13]
[393556071,1762797051423,-600.0,0.00035297,13]
[393556072,1762797051433,-600.0,0.00035297,13]
[393556073,1762797051444,-600.0,0.00035297,13]
[393556074,1762797051458,-600.0,0.00035297,13]
[393556075,1762797051468,-600.0,0.00035297,13]
[393556076,1762797051479,-600.0,0.00035297,13]
[393556077,1762797051488,-600.0,0.00035297,13]
[393556078,1762797051499,-600.0,0.00035297,13]
[393556079,1762797051509,-600.0,0.00035297,13]
[393556080,1762797051519,-600.0,0.00035297,13]
[393556081,1762797051531,-600.0,0.00035297,13]
[393556082,1762797051543,-600.0,0.00035297,13]
[393556083,1762797051553,-600.0,0.00035297,13]
[393556084,1762797051563,-600.0,0.00035297,13]
[393556085,1762797051573,-150.0,0.00035449,30]
[393556086,1762797051585,-150.0,0.00035449,30]
[393556087,1762797051595,-150.0,0.00035449,30]
[393556088,1762797051605,-150.0,0.00035449,30]
[393556089,1762797051615,-150.0,0.00035449,30]
[393556090,1762797051625,-189.88082319,0.00035449,30]
[393556091,1762797051635,-500.0,0.00035453,30]
[393556092,1762797051645,-574.14159547,0.00035453,30]
[393556093,1762797051655,-650.0779579,0.0003555,5]
[393556094,1762797051666,-999.0,0.00035616,120]
[393556095,1762797051677,-196.37,0.00035616,2]
[393556096,1762797051687,-602.261081,0.00035616,31]
[393556097,1762797051698,-602.261081,0.00035616,31]
[393556098,1762797051709,-602.261081,0.00035616,31]
[393556099,1762797051721,-602.261081,0.00035616,31]
[393556100,1762797051731,-152.0,0.00035626,5]
[393556101,1762797051741,-548.67263448,0.0003569,2]
[393556102,1762797051751,-222.44773578,0.00035734,120]
[393556103,1762797051761,-7129.18967903,0.00035736,2]
[393556104,1762797051771,-150.0,0.00035745,2]
[393556105,1762797051787,-517.37161808,0.00035763,2]
[393556106,1762797051798,-2000.0,0.00035768,120]
[393556107,1762797051808,-200.62837306,0.00035995,120]
[393556108,1762797051819,-200.0,0.00036,120]
[393556109,1762797051829,-168.0,0.00036,2]
[393556110,1762797051839,-8021.46898445,0.00036,2]
[393556111,1762797051853,-4286.77,0.00036,30]
[393556112,1762797051864,-500.0,0.00036,5]
[393556113,1762797051874,-655.65,0.00036007,2]
[393556114,1762797051885,-699.1,0.0003601,2]
[393556115,1762797051895,-699.1,0.0003601,2]
[393556116,1762797051905,-1500.0,0.000361,2]
[393556117,1762797051915,-1500.0,0.000361,2]
[393556118,1762797051926,-2500.16,0.00036118,2]
[393556119,1762797051936,-608.0,0.00036158,2]
[393556120,1762797051947,-1316.0,0.00036158,2]
[393556121,1762797051957,-3426.0,0.00036158,2]
[393556122,1762797051969,-574.0,0.00036158,2]
[393556123,1762797051979,-1597.0,0.00036158,2]
[393556124,1762797051989,-820.0,0.00036158,2]
[393556125,1762797052000,-1189.0,0.00036158,2]
[393556126,1762797052011,-906.0,0.00036158,2]
[393556127,1762797052022,-813.0,0.00036158,2]
[393556128,1762797052032,-1274.0,0.00036158,2]
[393556129,1762797052042,-2142.0,0.00036158,2]
[393556130,1762797052053,-6662.0,0.00036158,2]
[393556131,1762797052063,-150.0,0.00036158,2]
[393556132,1762797052074,-340.51927141,0.00036229,15]
[393556133,1762797052085,-2548.74,0.00036242,2]
[393556134,1762797052095,-264.16389869,0.00036333,16]
[393556135,1762797052105,-2500.65,0.00036388,2]
[393556136,1762797052115,-967.78418003,0.00036411,5]
[393556137,1762797052126,-999.0,0.00036438,120]
[393556138,1762797052136,-2500.15,0.00036443,2]
[393556139,1762797052147,-500.0,0.00036485,2]
[393556140,1762797052158,-25000.0,0.00036486,2]
[393556141,1762797052168,-404.68355148,0.000365,120]
[393556142,1762797052179,-2548.73,0.0003651,2]
[393556143,1762797052189,-209.18505361,0.00036581,30]
[393556144,1762797052200,-479.5,0.00036653,30]
[393556145,1762797052212,-267.59,0.0003667,120]
[393556146,1762797052222,-5000.0,0.00036697,2]
[393556147,1762797052234,-1249.70927556,0.00036717,2]
[393556148,1762797052244,-25000.0,0.0003672,2]
[393556149,1762797052254,-212.42638928,0.00036732,2]
[393556150,1762797052264,-25000.0,0.00036742,2]
[393556151,1762797052275,-371.26744855,0.00036744,3]
[393556152,1762797052284,-8772.86,0.00036756,2]
[393556153,1762797052294,-678.7,0.00036762,2]
[393556154,1762797052304,-150.90195053,0.00036792,60]
[393556155,1762797052315,-150.6,0.00036796,60]
[393556156,1762797052326,-150.6,0.00036797,60]
[393556157,1762797052336,-1209.88617273,0.000368,14]
[393556158,1762797052887,-1326.16543961,0.000368,14]
[393556159,1762797053027,-153.72105551,0.00026,2]
[393556160,1762797053037,-8707.28566546,0.00026135,2]
[393556161,1762797053052,-1794.08677642,0.00026135,2]
[393556162,1762797053063,-864.52075522,0.00026135,2]
[393556163,1762797053075,-5132.17910829,0.00026135,2]
[393556164,1762797053085,-151.0,0.000313,30]
[393556165,1762797053094,-239.033808,0.000313,31]
[393556166,1762797053104,-151.0,0.000313,31]
[393556167,1762797053114,-151.0,0.000313,31]
[393556168,1762797053123,-151.9706,0.000313,31]
[393556169,1762797053133,-2651.8617174,0.000368,14]
[393556170,1762797053143,-150.0,0.00036832,2]
[393556171,1762797053152,-157.94,0.00036833,60]
[393556172,1762797053162,-2484.56667824,0.00036855,2]
[393556173,1762797053173,-16.08332176,0.00036855,2]
[393556174,1762797053183,-162.14,0.00036858,60]
[393556175,1762797053193,-500.0,0.00036869,120]
[393556176,1762797053202,-150.56,0.00036888,60]
[393556177,1762797053213,-211.0,0.0003689,30]
[393556178,1762797053223,-150.6,0.00036896,60]
[393556179,1762797053234,-765.34139895,0.000369,2]
[393556180,1762797053246,-529.0,0.000369,2]
[393556181,1762797053270,-338.66557838,0.000369,2]
[393556182,1762797053310,-151.0,0.000313,31]
[393556183,1762797053331,-1839.08,0.000369,2]
[393556184,1762797053350,-1484.29309918,0.000369,2]
[393556185,1762797053372,-200.62837306,0.00036908,120]
[393556186,1762797053392,-157.94,0.00036933,60]
[393556187,1762797053412,-171.95,0.00036949,60]
[393556188,1762797053432,-162.14,0.00036958,60]
[393556189,1762797053452,-150.56,0.00036988,60]
[393556190,1762797053470,-150.6,0.00036996,60]
[393556191,1762797053485,-151.0,0.00036997,14]
[393556192,1762797053505,-500.0,0.00036999,120]
[393556193,1762797053520,-500.0,0.00036999,120]
[393556194,1762797053541,-520.8536195,0.00036999,120]
[393556195,1762797053555,-500.0,0.00036999,2]
[393556196,1762797053575,-168.0,0.00037,30]
[393556197,1762797053590,-10818.86198685,0.00037,30]
[393556198,1762797053605,-12034.79506168,0.00037,30]
[393556199,1762797053620,-24505.99824462,0.00037,30]
[393556200,1762797053635,-21940.81,0.00037,14]
[393556201,1762797053651,-1010.14466705,0.00037,7]
[393556202,1762797053667,-2000.0,0.00037001,120]
[393556203,1762797053683,-500.0,0.00037001,120]
[393556204,1762797053698,-157.94,0.00037033,60]
[393556205,1762797053714,-171.95,0.00037049,60]